fUSD/lending_fUSD_20260108
["ID","MTS","AMOUNT","RATE_DAILY","PERIOD"]
[400925574,1767863701078,-250.0,0.00011848,2]
[400925575,1767863701128,-6530.887204,0.00011928,2]
[400925576,1767863702272,-247.2815383,0.00011927,2]
[400925577,1767863707168,-300.0,0.00011808,2]
[400925578,1767863707197,-52.7184617,0.00011927,2]
[400925579,1767863707227,-1200.0,0.00011927,2]
[400925580,1767863707255,-300.0,0.00011927,2]
[400925581,1767863707284,-300.0,0.00011927,2]
[400925582,1767863707324,-150.0,0.00011927,2]
[400925583,1767863707456,-5394.5730766,0.00011928,2]
[400925592,1767863803574,-10000.01,0.00011828,2]
[400925594,1767863812512,-10000.01,0.00011828,2]
[400925595,1767863826924,3000.0,0.00032876,120]
[400925597,1767863829440,527.22699544,0.0003279,120]
[400925603,1767863878183,-300.0,0.00011827,2]
[400925604,1767863878210,-2500.0,0.00011828,2]
[400925605,1767863878256,-4400.01,0.00011828,2]
[400925606,1767863878469,-978.5442542,0.00011828,2]
[400925608,1767863878493,-8042.9214916,0.00011828,2]
[400925610,1767863878593,-999.11782116,0.00011828,2]
[400925611,1767863878622,-999.11782116,0.00011828,2]
[400925612,1767863878671,-6003.53871536,0.00011828,2]
[400925613,1767863878698,-10000.01,0.00011828,2]
[400925614,1767863878865,-548.04156213,0.00011828,2]
[400925615,1767863878892,-8903.92687574,0.00011828,2]
[400925617,1767863878953,-195.0,0.00011868,2]
[400925618,1767863878982,-300.0,0.00011883,2]
[400925619,1767863879010,-193.0,0.00011898,2]
[400925620,1767863879038,-500.0,0.00011927,2]
[400925621,1767863879067,-500.0,0.00011927,2]
[400925622,1767863879094,-233.79139718,0.00011927,2]
[400925623,1767863879125,-500.0,0.00011927,2]
[400925624,1767863879157,-500.0,0.00011927,2]
[400925625,1767863879289,-4156.42720564,0.00011928,2]
[400925626,1767863879306,-10000.01,0.00011928,2]
[400925630,1767863881077,-10000.01,0.00011928,2]
[400925631,1767863881637,-10000.01,0.00011928,2]
[400925632,1767863916000,-187.0,0.00011827,2]
[400925633,1767863916032,-4754.64466039,0.00011827,2]
[400925634,1767863916152,-116.72067922,0.00011827,2]
[400925635,1767863918171,-195.0,0.00011877,2]
[400925636,1767863918201,-150.0,0.00011919,2]
[400925637,1767863918229,-150.0,0.00011926,2]
[400925638,1767863918256,-324.62405213,0.00011927,2]
[400925639,1767863918284,-164.96890425,0.00011927,2]
[400925640,1767863918311,-1200.0,0.00011927,2]
[400925641,1767863918414,-5630.82408724,0.00011928,2]
[400925643,1767863927419,-10000.01,0.00011928,2]
[400925655,1767864008598,-247.0,0.00011818,2]
[400925656,1767864008637,-273.5996837,0.00011818,2]
[400925657,1767864008669,-1200.0,0.00011826,2]
[400925658,1767864008698,-300.0,0.00011826,2]
[400925659,1767864008806,-5958.8106326,0.00011827,2]
[400925660,1767864008849,-4958.8206326,0.00011827,2]
[400925661,1767864008874,-82.3687348,0.00011827,2]
[400925664,1767864011484,-773.96657799,0.00011828,2]
[400925665,1767864011513,-773.96657799,0.00011828,2]
[400925666,1767864011577,-6904.14368804,0.00011928,2]
[400925668,1767864017613,-10000.01,0.00011928,2]
[400925685,1767864172435,-637.53755807,0.00011516,2]
[400925696,1767864232629,-448.55216699,0.00011339,2]
[400925697,1767864235416,-472.05847415,0.00011339,2]
[400925698,1767864237474,-243.14365421,0.00011339,2]
[400925699,1767864239496,-189.3168,0.00011339,2]
[400925700,1767864241462,-153.891643,0.00011339,2]
[400925701,1767864244765,-229.16887849,0.00011339,2]
[400925702,1767864246264,-161.39838316,0.00011339,2]
[400925703,1767864246287,-1.45578844,0.00011516,2]
[400925704,1767864248911,-202.48078499,0.00011516,2]
[400925713,1767864306945,-158.5258685,0.00011516,2]
[400925714,1767864306980,-142.29952881,0.00011826,2]
[400925715,1767864310488,-206.41822793,0.00011727,2]
[400925716,1767864310511,-157.70047119,0.00011826,2]
[400925717,1767864310531,-101.84173906,0.00011827,2]
[400925718,1767864312680,-198.15826094,0.00011827,2]
[400925719,1767864312702,-159.49801717,0.00011827,2]
[400925720,1767864315610,-206.41822793,0.00011777,2]
[400925721,1767864315633,-236.4619342,0.00011827,2]
[400925722,1767864318486,-156.09199774,0.00011827,2]
[400925723,1767864320366,-197.03465754,0.00011827,2]
[400925724,1767864320516,-450.91339335,0.00011827,2]
[400925725,1767864320544,-150.0,0.00011827,2]
[400925726,1767864320572,-300.0,0.00011827,2]
[400925727,1767864320601,-300.0,0.00011827,2]
[400925728,1767864320630,-1200.0,0.00011827,2]
[400925729,1767864320662,-500.0,0.00011827,2]
[400925730,1767864320689,-503.28319711,0.00011827,2]
[400925731,1767864320721,-500.0,0.00011827,2]
[400925732,1767864320753,-500.0,0.00011827,2]
[400925733,1767864320784,-500.0,0.00011827,2]
[400925734,1767864320948,-500.0,0.00011827,2]
[400925735,1767864320981,-500.0,0.00011827,2]
[400925736,1767864321013,-500.0,0.00011827,2]
[400925737,1767864321045,-500.0,0.00011827,2]
[400925738,1767864321078,-500.0,0.00011827,2]
[400925739,1767864321111,-500.0,0.00011827,2]
[400925740,1767864321150,-500.0,0.00011827,2]
[400925741,1767864321184,-500.0,0.00011827,2]
[400925742,1767864321217,-556.4464433,0.00011827,2]
[400925743,1767864321255,-387.1171134,0.00011827,2]
[400925744,1767864321601,-112.8828866,0.00011827,2]
[400925745,1767864321612,-191.61681908,0.00011827,2]
[400925746,1767864322356,-39.79128867,0.00011827,2]
[400925747,1767864322379,-186.26906812,0.00011827,2]
[400925748,1767864322400,-71.73317284,0.00011827,2]
[400925749,1767864323457,-134.68505509,0.00011827,2]
[400925750,1767864323488,-1144.69858982,0.00011828,2]
[400925751,1767864323547,-7441.24271018,0.00011828,2]
[400925752,1767864326517,-2518.1429,0.00011828,2]
[400925753,1767864326546,-236.5514,0.00011828,2]
[400925754,1767864326575,-1990.6214,0.00011828,2]
[400925755,1767864326628,-509.3786,0.00011828,2]
[400925766,1767864353080,-281.94726149,0.00011728,2]
[400925767,1767864354720,-181.19737729,0.00011728,2]
[400925768,1767864354748,-318.80262271,0.00011827,2]
[400925769,1767864357244,-360.97001036,0.00011827,2]
[400925770,1767864359509,-286.28848714,0.00011827,2]
[400925771,1767864359540,-228.95585288,0.00011827,2]
[400925772,1767864362293,-500.0,0.00011827,2]
[400925773,1767864363322,8477.39275838,0.00011,2]
[400925774,1767864365753,-220.47777362,0.00011827,2]
[400925775,1767864367317,-16.62749371,0.00011827,2]
[400925776,1767864367345,-482.80396995,0.00011827,2]
[400925777,1767864368870,-483.25715026,0.00011827,2]
[400925778,1767864368898,-37.23584376,0.00011827,2]
[400925779,1767864370898,-383.42390206,0.00011827,2]
[400925780,1767864373162,-351.54260527,0.00011827,2]
[400925781,1767864375302,-193.85876912,0.00011827,2]
[400925782,1767864375328,-106.14123088,0.00011827,2]
[400925783,1767864376389,-859.91988933,0.00011827,2]
[400925784,1767864376425,-966.06112021,0.00011827,2]
[400925785,1767864376458,-966.06112021,0.00011827,2]
[400925786,1767864376490,-966.06112021,0.00011827,2]
[400925787,1767864376524,-966.06112021,0.00011827,2]
[400925788,1767864376686,-966.06112021,0.00011827,2]
[400925789,1767864376718,-966.06112021,0.00011827,2]
[400925790,1767864376751,-966.06112021,0.00011827,2]
[400925791,1767864376786,-966.06112021,0.00011827,2]
[400925792,1767864376818,-966.06112021,0.00011827,2]
[400925793,1767864379375,-966.06112021,0.00011827,2]
[400925794,1767864379409,-966.06112021,0.00011827,2]
[400925795,1767864379442,-966.06112021,0.00011827,2]
[400925796,1767864379475,-966.06112021,0.00011827,2]
[400925797,1767864379510,-966.06112021,0.00011827,2]
[400925798,1767864382577,-966.06112021,0.00011827,2]
[400925799,1767864382619,-966.06112021,0.00011827,2]
[400925800,1767864382653,-966.06112021,0.00011827,2]
[400925801,1767864382687,-966.06112021,0.00011827,2]
[400925802,1767864382723,-966.06112021,0.00011827,2]
[400925803,1767864385733,-966.06112021,0.00011827,2]
[400925804,1767864385767,-966.06112021,0.00011827,2]
[400925805,1767864385799,-966.06112021,0.00011827,2]
[400925806,1767864385834,-966.06112021,0.00011827,2]
[400925807,1767864385867,-966.06112021,0.00011827,2]
[400925816,1767864410791,440.00766512,0.00032877,120]
[400925817,1767864428012,205.0,9.8e-05,2]
[400925818,1767864435537,-300.0,0.00011826,2]
[400925819,1767864435569,-150.0,0.00011826,2]
[400925820,1767864435609,-966.06112021,0.00011827,2]
[400925821,1767864435650,-966.06112021,0.00011827,2]
[400925822,1767864436125,-966.06112021,0.00011827,2]
[400925823,1767864436162,-966.06112021,0.00011827,2]
[400925824,1767864436196,-405.45991811,0.00011827,2]
[400925825,1767864437367,-500.0,0.00011827,2]
[400925826,1767864441599,-489.20930786,0.00011728,2]
[400925827,1767864441632,-1000.0,0.00011827,2]
[400925828,1767864441670,-60.6012021,0.00011827,2]
[400925829,1767864441704,-966.06112021,0.00011827,2]
[400925830,1767864441739,-966.06112021,0.00011827,2]
[400925831,1767864441780,-966.06112021,0.00011827,2]
[400925832,1767864441815,-137.96113861,0.00011827,2]
[400925833,1767864442402,-168.42467707,0.00011827,2]
[400925834,1767864448649,-659.67530453,0.00011827,2]
[400925835,1767864448681,-966.06112021,0.00011827,2]
[400925836,1767864448713,-966.06112021,0.00011827,2]
[400925837,1767864448744,-966.06112021,0.00011827,2]
[400925838,1767864448776,-966.06112021,0.00011827,2]
[400925839,1767864451315,-966.06112021,0.00011827,2]
[400925840,1767864451351,-966.06112021,0.00011827,2]
[400925841,1767864451383,-966.06112021,0.00011827,2]
[400925842,1767864451415,-966.06112021,0.00011827,2]
[400925843,1767864451446,-966.06112021,0.00011827,2]
[400925844,1767864457081,-966.06112021,0.00011827,2]
[400925845,1767864457115,-966.06112021,0.00011827,2]
[400925846,1767864457148,-966.06112021,0.00011827,2]
[400925847,1767864457185,-966.06112021,0.00011827,2]
[400925848,1767864457219,-966.06112021,0.00011827,2]
[400925849,1767864460339,-966.06112021,0.00011827,2]
[400925850,1767864460372,-966.06112021,0.00011827,2]
[400925851,1767864460404,-966.06112021,0.00011827,2]
[400925852,1767864460437,-966.06112021,0.00011827,2]
[400925853,1767864460469,-966.06112021,0.00011827,2]
[400925854,1767864460587,-966.06112021,0.00011827,2]
[400925855,1767864460618,-966.06112021,0.00011827,2]
[400925856,1767864460646,-195.0,0.00011827,2]
[400925857,1767864460673,-250.0,0.00011827,2]
[400925858,1767864460700,-300.0,0.00011828,2]
[400925859,1767864460728,-2276.8149,0.00011828,2]
[400925860,1767864463262,-6906.69883412,0.00011828,2]
[400925861,1767864466753,-10000.01,0.00011828,2]
[400925862,1767864476021,-10000.01,0.00011828,2]
[400925870,1767864503889,2731.91848925,0.0001,2]
[400925873,1767864514295,498.17733073,0.0001,2]
[400925882,1767864562214,1037.53,5.68e-05,2]
[400925883,1767864562401,1037.53,5.968e-05,2]
[400925884,1767864562594,1037.53,6.255e-05,2]
[400925885,1767864562792,1037.53,6.542e-05,2]
[400925886,1767864562974,1037.53,6.829e-05,2]
[400925887,1767864563547,1037.53,7.116e-05,2]
[400925888,1767864563644,1037.53,7.404e-05,2]
[400925889,1767864563719,1037.53,7.691e-05,2]
[400925890,1767864563840,1037.53,7.978e-05,2]
[400925891,1767864564044,1037.53,8.265e-05,2]
[400925892,1767864564451,1037.53,8.553e-05,2]
[400925893,1767864564659,1037.53,8.84e-05,2]
[400925894,1767864564857,1037.53,9.127e-05,2]
[400925895,1767864565049,1037.53,9.414e-05,2]
[400925896,1767864565233,1037.53,9.702e-05,2]
[400925897,1767864565629,1037.53,9.989e-05,2]
[400925898,1767864577482,-207.08957226,0.00010276,2]
[400925899,1767864579094,-269.75501895,0.00010276,2]
[400925900,1767864583054,-191.37810671,0.00010276,2]
[400925901,1767864585083,-207.14352158,0.00010276,2]
[400925902,1767864586466,-162.1637805,0.00010276,2]
[400925903,1767864586488,-133.78114444,0.00010563,2]
[400925906,1767864588482,-156.21597287,0.00010563,2]
[400925907,1767864594465,-286.40117199,0.00010563,2]
[400925908,1767864597107,-292.97250298,0.00010563,2]
[400925909,1767864597225,-168.15920772,0.00010563,2]
[400925910,1767864597254,-1037.53,0.0001085,2]
[400925911,1767864597283,-1037.53,0.00011138,2]
[400925912,1767864598581,-361.54564304,0.00011727,2]
[400925913,1767864600725,-176.73401793,0.00011727,2]
[400925914,1767864601235,300.0,0.00011726,2]
[400925915,1767864601272,1200.0,0.00011726,2]
[400925916,1767864601335,300.0,0.00011726,2]
[400925917,1767864601658,300.0,0.00011726,2]
[400925918,1767864602135,150.0,0.00011726,2]
[400925919,1767864603714,158.0,0.00011726,2]
[400925920,1767864604055,185.0099351,0.00011038,2]
[400925921,1767864605312,-287.17334878,0.00011727,2]
[400925922,1767864606741,-477.58526062,0.00011727,2]
[400925923,1767864606838,246.0,0.00011727,2]
[400925924,1767864609877,185.0099351,0.00011721,2]
[400925925,1767864611754,-195.0,0.00011727,2]
[400925926,1767864613892,-427.8485849,0.00011727,2]
[400925927,1767864616730,-172.36715775,0.00011727,2]
[400925928,1767864618297,-294.46587476,0.00011727,2]
[400925929,1767864620646,-328.03260426,0.00011727,2]
[400925930,1767864623871,-292.85647842,0.00011727,2]
[400925936,1767864627525,-200.0,0.00011727,2]
[400925940,1767864629892,-280.73835114,0.00011727,2]
[400925946,1767864631903,-3231.53599866,0.00011727,2]
[400925948,1767864631918,-737.22721849,0.00011727,2]
[400925951,1767864631963,-1432.6153019,0.00011727,2]
[400925952,1767864631975,-4387.67352384,0.00011727,2]
[400925953,1767864632037,-255324.0185794,0.00011727,2]
[400925954,1767864632048,-17877.02058055,0.00011727,2]
[400925955,1767864632060,-45823.09233168,0.00011727,2]
[400925956,1767864632070,-1254.41808677,0.00011727,2]
[400925957,1767864632177,-24146.30087418,0.00011727,2]
[400925958,1767864632188,-1090.32619314,0.00011727,2]
[400925962,1767864633471,-240.01522619,0.00011727,2]
[400925963,1767864634946,-235.66563197,0.00011727,2]
[400925964,1767864637305,-176.60971943,0.00011727,2]
[400926010,1767864638782,500.0,0.00011726,2]
[400926014,1767864638820,420.70014419,0.00011726,2]
[400926015,1767864638862,545.11627494,0.00011726,2]
[400926016,1767864638899,338.26609793,0.00011726,2]
[400926041,1767864639280,500.0,0.00011726,2]
[400926081,1767864639688,185.4691973,0.00011726,2]
[400926085,1767864639711,314.5308027,0.00011726,2]
[400926094,1767864639796,-281.55,0.00011727,2]
[400926097,1767864639806,-33329.90995989,0.00011727,2]
[400926099,1767864639819,-606937.67345231,0.00011727,2]
[400926101,1767864639828,-1000.0,0.00011732,2]
[400926103,1767864639838,-3072.2527,0.00011821,2]
[400926105,1767864639847,-647.79173544,0.00011826,2]
[400926107,1767864639856,-647.79173544,0.00011826,2]
[400926109,1767864639865,-647.79173544,0.00011826,2]
[400926111,1767864639875,-647.79173544,0.00011826,2]
[400926113,1767864639884,-647.79173544,0.00011826,2]
[400926115,1767864639893,-647.79173544,0.00011826,2]
[400926117,1767864639903,-647.79173544,0.00011826,2]
[400926119,1767864639912,-647.79173544,0.00011826,2]
[400926121,1767864639921,-647.79173544,0.00011826,2]
[400926123,1767864639931,-647.79173544,0.00011826,2]
[400926125,1767864639940,-647.79173544,0.00011826,2]
[400926127,1767864639950,-529.62727253,0.00011827,2]
[400926130,1767864639962,-1200.0,0.00011827,2]
[400926132,1767864639971,-640.59404949,0.00011827,2]
[400926134,1767864639980,-640.59404949,0.00011827,2]
[400926135,1767864639989,-640.59404949,0.00011827,2]
[400926137,1767864640000,-640.59404949,0.00011827,2]
[400926139,1767864640010,-640.59404949,0.00011827,2]
[400926141,1767864640020,-640.59404949,0.00011827,2]
[400926143,1767864640030,-640.59404949,0.00011827,2]
[400926146,1767864640040,-640.59404949,0.00011827,2]
[400926148,1767864640050,-640.59404949,0.00011827,2]
[400926149,1767864640059,-640.59404949,0.00011827,2]
[400926151,1767864640069,-640.59404949,0.00011827,2]
[400926154,1767864640079,-640.59404949,0.00011827,2]
[400926156,1767864640089,-640.59404949,0.00011827,2]
[400926158,1767864640098,-640.59404949,0.00011827,2]
[400926160,1767864640108,-640.59404949,0.00011827,2]
[400926161,1767864640118,-640.59404949,0.00011827,2]
[400926163,1767864640128,-640.59404949,0.00011827,2]
[400926165,1767864640137,-640.59404949,0.00011827,2]
[400926167,1767864640147,-640.59404949,0.00011827,2]
[400926169,1767864640156,-640.59404949,0.00011827,2]
[400926171,1767864640166,-640.59404949,0.00011827,2]
[400926173,1767864640176,-640.59404949,0.00011827,2]
[400926175,1767864640185,-640.59404949,0.00011827,2]
[400926177,1767864640195,-640.59404949,0.00011827,2]
[400926179,1767864640206,-640.59404949,0.00011827,2]
[400926181,1767864640216,-640.59404949,0.00011827,2]
[400926183,1767864640226,-640.59404949,0.00011827,2]
[400926185,1767864640236,-640.59404949,0.00011827,2]
[400926187,1767864640245,-640.59404949,0.00011827,2]
[400926189,1767864640255,-640.59404949,0.00011827,2]
[400926191,1767864640265,-640.59404949,0.00011827,2]
[400926193,1767864640275,-640.59404949,0.00011827,2]
[400926195,1767864640284,-640.59404949,0.00011827,2]
[400926197,1767864640293,-640.59404949,0.00011827,2]
[400926199,1767864640303,-640.59404949,0.00011827,2]
[400926201,1767864640312,-640.59404949,0.00011827,2]
[400926203,1767864640322,-640.59404949,0.00011827,2]
[400926205,1767864640336,-640.59404949,0.00011827,2]
[400926207,1767864640345,-640.59404949,0.00011827,2]
[400926209,1767864640354,-640.59404949,0.00011827,2]
[400926211,1767864640364,-640.59404949,0.00011827,2]
[400926213,1767864640373,-640.59404949,0.00011827,2]
[400926215,1767864640383,-640.59404949,0.00011827,2]
[400926217,1767864640392,-640.59404949,0.00011827,2]
[400926219,1767864640404,-640.59404949,0.00011827,2]
[400926221,1767864640414,-640.59404949,0.00011827,2]
[400926223,1767864640423,-640.59404949,0.00011827,2]
[400926225,1767864640433,-640.59404949,0.00011827,2]
[400926227,1767864640442,-640.59404949,0.00011827,2]
[400926229,1767864640451,-640.59404949,0.00011827,2]
[400926231,1767864640461,-640.59404949,0.00011827,2]
[400926233,1767864640470,-640.59404949,0.00011827,2]
[400926235,1767864640480,-640.59404949,0.00011827,2]
[400926238,1767864640489,-640.59404949,0.00011827,2]
[400926240,1767864640499,-640.59404949,0.00011827,2]
[400926242,1767864640508,-640.59404949,0.00011827,2]
[400926244,1767864640518,-626.66809188,0.00011827,2]
[400926246,1767864640526,-626.66809188,0.00011827,2]
[400926248,1767864640537,-626.66809188,0.00011827,2]
[400926250,1767864640546,-626.66809188,0.00011827,2]
[400926252,1767864640555,-626.66809188,0.00011827,2]
[400926253,1767864640564,-626.66809188,0.00011827,2]
[400926255,1767864640573,-626.66809188,0.00011827,2]
[400926257,1767864640582,-626.66809188,0.00011827,2]
[400926260,1767864640591,-626.66809188,0.00011827,2]
[400926263,1767864640600,-626.66809188,0.00011827,2]
[400926266,1767864640609,-626.66809188,0.00011827,2]
[400926268,1767864640618,-626.66809188,0.00011827,2]
[400926270,1767864640627,-626.66809188,0.00011827,2]
[400926272,1767864640636,-626.66809188,0.00011827,2]
[400926274,1767864640645,-626.66809188,0.00011827,2]
[400926276,1767864640654,-626.66809188,0.00011827,2]
[400926278,1767864640663,-626.66809188,0.00011827,2]
[400926280,1767864640673,-626.66809188,0.00011827,2]
[400926282,1767864640682,-626.66809188,0.00011827,2]
[400926284,1767864640690,-626.66809188,0.00011827,2]
[400926286,1767864640699,-626.66809188,0.00011827,2]
[400926288,1767864640710,-626.66809188,0.00011827,2]
[400926290,1767864640719,-626.66809188,0.00011827,2]
[400926292,1767864640728,-5152.05256588,0.00011828,2]
[400926294,1767864640738,-2500.0,0.00011828,2]
[400926296,1767864640747,-24411.45367535,0.00011828,2]
[400926298,1767864640756,-32233.31480655,0.00011828,2]
[400926300,1767864640765,-195.0,0.00011834,2]
[400926302,1767864640774,-250.0,0.00011858,2]
[400926343,1767864641140,-300.0,0.00011886,2]
[400926345,1767864641151,-300.0,0.00011886,2]
[400926347,1767864641161,-1000.0,0.0001192,2]
[400926349,1767864641171,-200.0,0.00011921,2]
[400926351,1767864641183,-500.0,0.00011921,2]
[400926353,1767864641192,-200.0,0.00011921,2]
[400926355,1767864641203,-151.0,0.00011921,2]
[400926357,1767864641218,-151.0,0.00011921,2]
[400926359,1767864641227,-151.0,0.00011921,2]
[400926361,1767864641238,-151.0,0.00011921,2]
[400926363,1767864641248,-151.0,0.00011921,2]
[400926365,1767864641259,-151.0,0.00011921,2]
[400926367,1767864641269,-151.0,0.00011921,2]
[400926369,1767864641279,-151.0,0.00011921,2]
[400926371,1767864641288,-151.0,0.00011921,2]
[400926373,1767864641298,-151.0,0.00011921,2]
[400926375,1767864641309,-151.0,0.00011921,2]
[400926377,1767864641320,-200.0,0.00011921,2]
[400926379,1767864641333,-151.0,0.00011921,2]
[400926381,1767864641342,-151.0,0.00011921,2]
[400926383,1767864641352,-151.0,0.00011921,2]
[400926385,1767864641362,-151.0,0.00011921,2]
[400926387,1767864641373,-151.0,0.00011921,2]
[400926389,1767864641382,-151.0,0.00011921,2]
[400926391,1767864641392,-151.0,0.00011921,2]
[400926393,1767864641401,-151.0,0.00011921,2]
[400926395,1767864641411,-151.0,0.00011921,2]
[400926397,1767864641420,-151.0,0.00011921,2]
[400926399,1767864641430,-151.0,0.00011921,2]
[400926401,1767864641440,-151.0,0.00011921,2]
[400926404,1767864641451,-151.0,0.00011921,2]
[400926405,1767864641465,-151.0,0.00011921,2]
[400926408,1767864641474,-151.0,0.00011921,2]
[400926410,1767864641484,-151.0,0.00011921,2]
[400926412,1767864641493,-151.0,0.00011921,2]
[400926414,1767864641503,-151.0,0.00011921,2]
[400926416,1767864641512,-151.0,0.00011921,2]
[400926418,1767864641522,-151.0,0.00011921,2]
[400926420,1767864641531,-1000.0,0.00011927,2]
[400926422,1767864641540,-150.99,0.00011927,2]
[400926424,1767864641550,-9999.99,0.00011927,2]
[400926426,1767864641559,-150.99,0.00011927,2]
[400926428,1767864641568,-9999.99,0.00011927,2]
[400926430,1767864641577,-9999.99,0.00011927,2]
[400926432,1767864641586,-999.99,0.00011927,2]
[400926434,1767864641596,-8882.54,0.00011927,2]
[400926436,1767864641605,-2789.66140199,0.00011928,2]
[400926438,1767864641614,-2153.16109055,0.00011928,2]
[400926440,1767864641623,-5939.66738446,0.00012,2]
[400926442,1767864641632,-200.0,0.00012,2]
[400926444,1767864641641,-200.0,0.00012024,2]
[400926445,1767864641651,-500.0,0.00012033,2]
[400926447,1767864641660,-500.0,0.00012033,2]
[400926449,1767864641669,-150.0,0.00012033,2]
[400926452,1767864641679,-500.0,0.00012033,2]
[400926454,1767864641688,-150.0,0.00012033,2]
[400926456,1767864641697,-150.0,0.00012033,2]
[400926458,1767864641708,-150.0,0.00012033,2]
[400926459,1767864641717,-150.0,0.00012033,2]
[400926461,1767864641727,-150.0,0.00012033,2]
[400926463,1767864641736,-150.0,0.00012033,2]
[400926465,1767864641745,-500.0,0.00012033,2]
[400926467,1767864641754,-500.0,0.00012033,2]
[400926469,1767864641763,-500.0,0.00012033,2]
[400926471,1767864641773,-500.0,0.00012033,2]
[400926473,1767864641782,-500.0,0.00012033,2]
[400926475,1767864641791,-1561.43224408,0.00012033,2]
[400926477,1767864641800,-222175.40986806,0.00012043,2]
[400926479,1767864641809,-500.0,0.00012088,2]
[400926481,1767864641818,-500.0,0.00012088,2]
[400926483,1767864641827,-233.66248833,0.00012088,2]
[400926485,1767864641836,-500.0,0.00012088,2]
[400926487,1767864641845,-150.0,0.00012088,2]
[400926489,1767864641854,-150.0,0.00012088,2]
[400926491,1767864641863,-150.0,0.00012088,2]
[400926493,1767864641872,-150.0,0.00012088,2]
[400926495,1767864641881,-150.0,0.00012088,2]
[400926497,1767864641890,-150.0,0.00012088,2]
[400926499,1767864641900,-500.0,0.00012088,2]
[400926501,1767864641909,-500.0,0.00012088,2]
[400926503,1767864641918,-500.0,0.00012088,2]
[400926505,1767864641927,-500.0,0.00012088,2]
[400926507,1767864641937,-500.0,0.00012088,2]
[400926509,1767864641945,-500.0,0.00012143,2]
[400926510,1767864641954,-501.65586908,0.00012143,2]
[400926512,1767864641965,-150.0,0.00012143,2]
[400926514,1767864641975,-150.0,0.00012143,2]
[400926516,1767864641984,-150.0,0.00012143,2]
[400926518,1767864641993,-500.0,0.00012143,2]
[400926520,1767864642002,-150.0,0.00012143,2]
[400926522,1767864642011,-150.0,0.00012143,2]
[400926524,1767864642021,-217.19962447,0.00012143,2]
[400926526,1767864642030,-500.0,0.00012143,2]
[400926528,1767864642039,-500.88287597,0.00012143,2]
[400926530,1767864642048,-500.0,0.00012143,2]
[400926532,1767864642057,-500.0,0.00012143,2]
[400926534,1767864642067,-500.0,0.00012143,2]
[400926536,1767864642076,-205.38896935,0.00012197,2]
[400926538,1767864642085,-549.62704522,0.00012197,2]
[400926540,1767864642094,-174.74090706,0.00012197,2]
[400926542,1767864642103,-357.48560146,0.00012197,2]
[400926544,1767864642112,-500.0,0.00012197,2]
[400926546,1767864642121,-500.0,0.00012197,2]
[400926548,1767864642131,-500.0,0.00012197,2]
[400926550,1767864642141,-1622.12,0.00012199,2]
[400926552,1767864642150,-500.0,0.00012252,2]
[400926554,1767864642159,-500.0,0.00012252,2]
[400926556,1767864642168,-500.0,0.00012252,2]
[400926558,1767864642177,-500.0,0.00012307,2]
[400926560,1767864642186,-500.0,0.00012307,2]
[400926562,1767864642195,-500.0,0.00012307,2]
[400926564,1767864642204,-440.06247596,0.00012362,2]
[400926566,1767864642216,-500.0,0.00012362,2]
[400926568,1767864642225,-500.0,0.00012362,2]
[400926570,1767864642235,-500.0,0.00012417,2]
[400926572,1767864642244,-500.0,0.00012417,2]
[400926574,1767864642253,-500.0,0.00012469,2]
[400926576,1767864642263,-202.84026902,0.00012469,2]
[400926578,1767864642272,-500.0,0.00012469,2]
[400926580,1767864642281,-200.0,0.00012469,2]
[400926582,1767864642291,-500.0,0.00012471,2]
[400926584,1767864642300,-500.0,0.00012471,2]
[400926586,1767864642309,-1622.12,0.00012473,2]
[400926588,1767864642318,-307.04411555,0.000125,2]
[400926590,1767864642328,-32233.31480653,0.00012502,2]